[Event "XV American Continental 2022"]
[Site "San Salvador"]
[Date "2022.05.07"]
[Round "8.5"]
[White "Valdes Romero, Leonardo"]
[Black "Mekhitarian, Krikor Sevag"]
[Result "0-1"]
[ECO "A13"]
[WhiteElo "2403"]
[BlackElo "2569"]
[Annotator "TA"]
[PlyCount "62"]
[EventDate "2022.05.02"]
[EventCountry "ESA"]
[SourceTitle "playchess.com"]
[Source "ChessBase"]
[SourceQuality "1"]
[TimeControl "40/5400+30:1800+30"]

{[%evp 9,62,14,20,12,15,0,2,0,0,-10,0,0,0,0,-7,0,0,-13,0,0,0,0,0,0,0,0,0,0,34,0,16,-77,-41,-58,-11,-70,-64,-53,-56,-50,-53,-64,-71,-59,-63,-52,-27,-43,-47,-645,-641,-611,-498,-479,-403]} 1. c4 {[%emt 0:07:52]} e6 {[%emt 0:00:56]} 2. Nf3 {[%emt 0:01:45]} d5 {[%emt 0:00:17]} 3. e3 {[%emt 0:02:32]} Nf6 {[%emt 0:01:03]} 4. Nc3 {[%emt 0:00:11]} a6 {[%emt 0:05:00]} 5. b3 {[%emt 0:02:24]} Bd6 {[%emt 0:00:06]} 6. Bb2 {[%emt 0:02:09] A17: English Opening: 1...Nf6 with ...Bb4.} b6 {[%emt 0:00:18]} 7. Qc2 {[%emt 0:11:44]} Bb7 {[%emt 0:08:03]} 8. cxd5 {[%emt 0:11:34] The position is equal.} exd5 {[%emt 0:00:04]} 9. Be2 {[%emt 0:00:16]} Nbd7 {[%emt 0:03:02]} 10. O-O {[%emt 0:07:46]} O-O {[%emt 0:00:14]} 11. Rac1 {[%emt 0:05:58]} Re8 {[%emt 0:01:32]} 12. Rfd1 {[%emt 0:06:51]} Qe7 {[%emt 0:02:12]} 13. Qf5 {[%emt 0:01:20]} Rac8 {[%emt 0:02:46]} 14. d4 {[%emt 0:08:56]} g6 {[%emt 0:03:42]} 15. Qh3 {[%emt 0:09:21]} Rcd8 {[%emt 0:21:14] [#]} 16. Ng5 $146 {[%emt 0:08:00]} ({Predecessor:} 16. Qh4 Qf8 17. Ne5 Qg7 18. f4 Nf8 19. g4 N6d7 20. g5 f6 21. Ng4 fxg5 22. fxg5 {1-0 (52) Amato,A (2330)-Le Goff,R (2303) Trieste 2019}) 16... Qf8 {[%emt 0:04:39]} 17. g3 {[%emt 0:02:37]} h6 {[%emt 0:01:53]} 18. Nf3 {[%emt 0:00:05]} c5 {[%emt 0:12:30]} 19. Ba3 {[%emt 0:02:13]} Kg7 {[%emt 0:01:03][%cal Oc5c4]} 20. Nd2 {[%emt 0:01:32] Against c4} (20. Qf1 $11 {remains equal.}) 20... Qe7 {[%emt 0:04:56]} 21. Bf3 {[%emt 0:00:22]} Nf8 {[%emt 0:01:40]} (21... cxd4 $1 $15 {might be stronger.} 22. Bxd6 Qxd6 23. exd4 Qb4) 22. Qg2 {[%emt 0:00:22]} (22. dxc5 $11 Bxc5 23. Bxc5 bxc5 24. Qg2) 22... cxd4 $1 $15 {[%emt 0:06:15]} 23. Bxd6 {[%emt 0:00:26]} Qxd6 {[%emt 0:00:32]} 24. exd4 {[%emt 0:00:05][%cal Od2c4]} Ne6 {[%emt 0:00:56][%cal Bf8e6,Be6g5,Bg5f3][%mdl 32]} 25. Nf1 $1 {[%emt 0:00:29]} Qb4 {[%emt 0:01:11] Black is more active.} 26. Ne2 {[%emt 0:01:37]} Rc8 {[%emt 0:03:31]} 27. Rxc8 {[%emt 0:00:23]} Rxc8 {[%emt 0:00:01]} 28. Ne3 {[%emt 0:00:07] Inhibits Rc2.} Qa3 $36 {[%emt 0:00:09][%mdl 2048] Black has good play.} 29. Nxd5 $2 {[%emt 0:01:03][%mdl 8192] [#]} (29. Nf4 $15) 29... Ng5 $1 $19 {[%emt 0:00:55] Black is clearly winning.} 30. Nef4 {[%emt 0:00:50]} Nxf3+ {[%emt 0:02:30]} 31. Qxf3 {[%emt 0:00:02][%cal Of4e6] Hoping for Ne6+!} Qd6 {[%emt 0:00:09] Prevents Ne6+.  Weighted Error Value: White=0.45/Black=0.10 (very precise)} 0-1

[Event "XV American Continental 2022"]
[Site "San Salvador"]
[Date "2022.05.07"]
[Round "8.6"]
[White "Salinas Herrera, Pablo"]
[Black "Sarkar, Justin"]
[Result "1-0"]
[ECO "C80"]
[WhiteElo "2534"]
[BlackElo "2325"]
[Annotator "TA"]
[PlyCount "69"]
[EventDate "2022.05.02"]
[EventCountry "ESA"]
[SourceTitle "playchess.com"]
[Source "ChessBase"]
[SourceQuality "1"]
[TimeControl "40/5400+30:1800+30"]

{[%evp 20,69,12,6,0,0,16,6,11,16,48,51,45,49,50,55,43,36,45,45,45,50,70,65,75,61,81,64,273,223,222,227,463,108,585,581,526,387,1763,2216,1869,1965,1733,1772,1395,1369,1295,1322,29991,29992,29992,29993]} 1. e4 {[%emt 0:01:27]} e5 {[%emt 0:01:10]} 2. Nf3 {[%emt 0:00:08]} Nc6 {[%emt 0:00:08]} 3. Bb5 {[%emt 0:00:04]} a6 {[%emt 0:00:17]} 4. Ba4 {[%emt 0:00:05]} Nf6 {[%emt 0:00:23]} 5. O-O {[%emt 0:00:07]} Nxe4 {[%emt 0:00:48]} 6. Re1 {[%emt 0:04:22]} Nc5 {[%emt 0:00:31]} 7. Bxc6 {[%emt 0:00:05]} dxc6 {[%emt 0:00:50]} 8. Nxe5 {[%emt 0:00:05]} Be7 {[%emt 0:02:13]} 9. d4 {[%emt 0:00:03]} Ne6 {[%emt 0:00:16]} 10. Be3 {[%emt 0:00:03]} O-O {[%emt 0:00:39]} 11. c4 {[%emt 0:00:03]} Re8 {[%emt 0:13:37] C80: Open Ruy Lopez: Sidelines and 9 Nbd2.} 12. Nc3 {[%emt 0:00:51]} f6 {[%emt 0:01:02]} 13. Nf3 {[%emt 0:00:07]} Bd6 {[%emt 0:03:20] The position is equal.} 14. Qb3 {[%emt 0:01:41]} c5 {[%emt 0:11:24]} 15. dxc5 {[%emt 0:09:58]} Nxc5 {[%emt 0:00:19] [#]} 16. Bxc5 $146 {[%emt 0:01:44]} ({Predecessor:} 16. Qc2 Bg4 17. b4 Nd7 18. c5 Be5 19. Nxe5 Nxe5 20. Bf4 Qd3 21. Qc1 Rac8 22. Bxe5 Rxe5 23. Rxe5 fxe5 {1-0 (38) Dexter,D (2243)-Dunne,P (1857) Leipzig 2007}) 16... Rxe1+ {[%emt 0:03:39]} 17. Rxe1 {[%emt 0:00:05]} Bxc5 {[%emt 0:00:06]} 18. Ne4 {[%emt 0:00:53]} Be7 {[%emt 0:04:05]} 19. c5+ {[%emt 0:00:24]} Kf8 $1 {[%emt 0:00:44]} 20. h3 {[%emt 0:12:18]} Qd7 {[%emt 0:10:59]} 21. Qe3 {[%emt 0:08:15] 0x0.002b16ec2911dp-1022s more active pieces.} a5 {[%emt 0:04:44]} 22. Nd4 {[%emt 0:02:47]} Ra6 {[%emt 0:07:53]} 23. g4 {[%emt 0:00:54][%cal Oc5c6]} h5 $2 {[%emt 0:02:38]} ({Black should try} 23... Qd8 $14) 24. c6 {[%emt 0:03:08]} bxc6 {[%emt 0:09:25]} 25. Nf5 $1 {[%emt 0:00:42] Black must now prevent Nc5. Pair of Knights!} ({Stronger than} 25. gxh5 c5 26. Nb5 Qxh3 $11) 25... hxg4 $2 {[%emt 0:00:35] [#]} (25... Qd8 {was called for.}) 26. hxg4 $2 {[%emt 0:00:07]} (26. Nc5 $1 $18 {and the rest is easy.} Qxf5 27. Qxe7+ Kg8 28. Qd8+ (28. Qxc7 g3 $11) 28... Kh7 {[#]} 29. Re8 $1 (29. Nxa6 gxh3 30. Qxc7 Bxa6 $16)) 26... Qe6 {[%emt 0:08:29][%mdl 8192]} (26... Qd8 $16) 27. Qh3 $18 {[%emt 0:03:24]} Bb4 {[%emt 0:01:09]} 28. Rd1 {[%emt 0:01:28] Threatening mate with Rd8+.} ({Weaker is} 28. Qh8+ Qg8 29. Qh4 Bxe1 $11) 28... Kg8 $2 {[%emt 0:05:08]} (28... Bd6 29. Nc5 Qc4) 29. Rd8+ {[%emt 0:00:13]} Bf8 {[%emt 0:00:20] [#]} 30. Qa3 $1 {[%emt 0:02:48]} c5 {[%emt 0:04:52] [#]} 31. Qxc5 $1 {[%emt 0:00:05]} Rd6 {[%emt 0:01:12]} 32. Nexd6 {[%emt 0:01:33]} cxd6 {[%emt 0:00:58]} 33. Qxc8 {[%emt 0:00:34]} Qe1+ {[%emt 0:00:06]} 34. Kg2 {[%emt 0:00:03]} Qe4+ {[%emt 0:00:26]} 35. Kg3 {[%emt 0:00:09] Weighted Error Value: White=0.44/Black=1.00} 1-0

[Event "XV American Continental 2022"]
[Site "San Salvador"]
[Date "2022.05.07"]
[Round "8.7"]
[White "Hungaski, Robert"]
[Black "Zilleruelo Irizarry, Diego"]
[Result "1-0"]
[ECO "B12"]
[WhiteElo "2521"]
[BlackElo "2056"]
[Annotator "TA"]
[PlyCount "65"]
[EventDate "2022.05.02"]
[EventCountry "ESA"]
[SourceTitle "playchess.com"]
[Source "ChessBase"]
[SourceQuality "1"]
[TimeControl "40/5400+30:1800+30"]

{[%evp 9,65,33,54,56,52,49,41,23,77,69,86,60,147,171,183,141,281,199,292,283,244,208,253,246,263,222,313,280,281,293,320,223,340,293,340,323,362,353,436,443,503,489,517,506,499,506,447,446,411,399,704,701,701,694,827,800,783,751]} 1. e4 {[%emt 0:07:41]} c6 {[%emt 0:00:11]} 2. d4 {[%emt 0:00:05]} d5 {[%emt 0:00:02]} 3. e5 {[%emt 0:00:09]} c5 {[%emt 0:00:42]} 4. c3 {[%emt 0:00:24][%cal Bc2c3,Bc3d4,Bd4e5][%mdl 32]} e6 {[%emt 0:02:39]} 5. Nf3 {[%emt 0:00:55]} Nd7 {[%emt 0:03:26]} 6. Bd3 {[%emt 0:02:03] B12: Caro-Kann: Advance Variation.} Ne7 {[%emt 0:00:34] [#]} 7. a3 $146 {[%emt 0:05:01]} ({Predecessor:} 7. O-O Nc6 8. Re1 Be7 9. Be3 a6 10. Nbd2 b5 11. Nf1 c4 12. Bc2 b4 13. Qd2 {0-1 (75) Demchenko,A (2641)-Goltsev,D (2292) Chess.com INT 2020}) 7... Nc6 {[%emt 0:01:55]} 8. h4 {[%emt 0:04:40] White is slightly better.} cxd4 {[%emt 0:03:11]} (8... Qb6 $11 {keeps the balance.}) 9. cxd4 $16 {[%emt 0:00:07]} f6 {[%emt 0:04:04][%cal Rf6e5]} 10. Bf4 {[%emt 0:09:50] White is more active.} (10. Ng5 {feels hotter.} Ndxe5 11. dxe5 fxg5 12. Qh5+) 10... Qc7 {[%emt 0:23:31]} (10... fxe5 $14 11. dxe5 (11. Nxe5 Ndxe5 12. dxe5 g6 $11) 11... Nc5) 11. Nc3 {[%emt 0:04:07]} a6 {[%emt 0:00:58][%cal Rf6e5]} 12. Rc1 {[%emt 0:10:09]} fxe5 {[%emt 0:03:07]} (12... Be7 $16 {is a better defense.}) 13. dxe5 {[%emt 0:00:24]} (13. Nxe5 Ndxe5 14. O-O (14. dxe5 g6 $14) 14... Qf7 15. Bxe5 Nxe5 16. dxe5 Bd7 $14) 13... Nc5 {[%emt 0:06:10]} (13... Be7 $142 14. g3 Rb8) 14. Bb1 $18 {[%emt 0:01:19]} Qf7 {[%emt 0:00:18]} 15. Ne2 {[%emt 0:15:36]} Be7 {[%emt 0:04:23]} 16. Ng5 {[%emt 0:02:16] Inhibits Ne4.} Qg8 {[%emt 0:03:47]} 17. Rc3 {[%emt 0:08:47][%cal Bc1c3,Bc3h3,Bh3f3,Bf3f6][%mdl 32] Hoping for Qc1.} Nd7 {[%emt 0:01:09]} (17... a5 {might work better.} 18. Nd4 Bd7 19. Nxc6 Bxc6) 18. Qc2 {[%emt 0:06:58]} Bxg5 {[%emt 0:05:13]} 19. hxg5 {[%emt 0:00:52]} g6 {[%emt 0:00:21]} 20. b4 {[%emt 0:02:44]} Ke7 {[%emt 0:07:21]} (20... Qf7 $142 21. Rh6 Rb8) 21. Rch3 {[%emt 0:01:47]} Qf7 {[%emt 0:01:46]} 22. Bc1 {[%emt 0:02:25][%cal Bf4c1,Bc1e3,Be3c5][%mdl 32]} Nf8 {[%emt 0:06:51]} 23. Be3 {[%emt 0:05:54]} ({Weaker is} 23. Rf3 Qg8 24. Rc3 (24. b5 axb5 25. Rb3 Kd8 $16) 24... Bd7 $18) 23... Bd7 {[%emt 0:06:20]} 24. Bc5+ {[%emt 0:00:05]} Kd8 {[%emt 0:00:03]} 25. Qc3 {[%emt 0:03:22]} Rc8 {[%emt 0:02:11]} 26. Rf3 {[%emt 0:00:09]} Qg7 {[%emt 0:00:26]} 27. Rf6 {[%emt 0:00:14]} Ne7 {[%emt 0:00:33]} 28. Qf3 {[%emt 0:00:29] [#] Rf7 is the strong threat.} Ke8 {[%emt 0:00:15] Inhibits Rf7.} 29. Rh4 {[%emt 0:01:58] And now Rhf4 would win.} Nf5 $2 {[%emt 0:01:56]} (29... Bb5 30. Rhf4 Rxc5) 30. Bxf5 {[%emt 0:00:52] White is clearly winning.} gxf5 {[%emt 0:02:14]} 31. Qh5+ {[%emt 0:00:19]} Kd8 {[%emt 0:01:22]} 32. Bxf8 {[%emt 0:01:01]} Rxf8 {[%emt 0:00:03]} 33. Qxh7 {[%emt 0:00:15] White took control after the opening.  Weighted Error Value: White=0.15 (very precise) /Black=0.41} 1-0

[Event "XV American Continental 2022"]
[Site "San Salvador"]
[Date "2022.05.07"]
[Round "8.8"]
[White "Giron, Jorge Ernesto"]
[Black "Morovic Fernandez, Ivan"]
[Result "0-1"]
[ECO "C90"]
[WhiteElo "2257"]
[BlackElo "2495"]
[Annotator "TA"]
[PlyCount "174"]
[EventDate "2022.05.02"]
[EventCountry "ESA"]
[SourceTitle "playchess.com"]
[Source "ChessBase"]
[SourceQuality "1"]
[TimeControl "40/5400+30:1800+30"]

{[%evp 24,174,38,19,16,12,17,26,8,8,15,12,0,0,33,-5,-6,-7,-6,-9,-6,-43,-39,-125,-127,-131,-130,-122,-122,-124,-131,-138,-117,-140,-130,-106,-131,-175,-118,-162,-157,-156,-149,-255,-238,-250,-171,-168,-166,-163,-137,-137,-131,-136,-138,-131,-122,-141,-134,-135,-123,-134,-122,-131,-131,-125,-113,-144,-136,-162,-162,-167,-162,-162,-136,-175,-164,-164,-164,-165,-165,-165,-165,-372,-353,-333,-164,-164,-164,-175,-175,-192,-164,-164,-164,-195,-164,-164,0,-195,-195,-243,-231,-330,-331,-316,-164,-359,-333,-226,-164,-164,-164,-164,0,-164,-164,-164,-164,-164,-164,-164,-164,-164,-164,-164,-164,-164,-164,-164,-164,-164,-118,-135,-119,-366,-368,-472,-452,-570,-565,-641,-617,-2200,-2053,-2562,-2085,-12848,-12848,-12848,-12848,-12849,-12849]} 1. e4 {[%emt 0:00:22]} e5 {[%emt 0:00:17]} 2. Nf3 {[%emt 0:00:12]} Nc6 {[%emt 0:00:06]} 3. Bb5 {[%emt 0:00:07]} a6 {[%emt 0:00:12]} 4. Ba4 {[%emt 0:00:05]} Nf6 {[%emt 0:00:08][%cal Bg8f6,Bf6d7,Bd7b6][%mdl 32]} 5. O-O {[%emt 0:00:11]} Be7 {[%emt 0:00:11]} 6. d3 {[%emt 0:00:11]} b5 {[%emt 0:00:39]} 7. Bb3 {[%emt 0:00:06]} d6 {[%emt 0:00:07]} 8. c3 {[%emt 0:00:05]} O-O {[%emt 0:00:47]} 9. Re1 {[%emt 0:00:09]} Nd7 {[%emt 0:02:35]} 10. Nbd2 {[%emt 0:15:39][%cal Bb1d2,Bd2f1,Bf1e3,Be3d5][%mdl 32]} Nb6 {[%emt 0:00:49]} 11. Nf1 {[%emt 0:00:17]} Na5 {[%emt 0:01:31]} 12. Bc2 {[%emt 0:00:45]} c5 {[%emt 0:00:09]} 13. Ne3 {[%emt 0:01:46]} Nc6 {[%emt 0:00:58] C90: Closed Ruy Lopez with 7...d6: Early deviations.} 14. a4 {[%emt 0:10:47]} Nxa4 {[%emt 0:06:02]} 15. Bxa4 {[%emt 0:00:08]} bxa4 {[%emt 0:00:03] White has an edge.} 16. Qxa4 {[%emt 0:00:13]} Bd7 {[%emt 0:00:59] [#]} 17. Qc4 $146 {[%emt 0:04:36]} ({Predecessor:} 17. Qc2 Qb8 18. Nd2 Bd8 19. Ndc4 Ne7 20. Ra3 Bc7 21. Bd2 Qb7 22. Na5 Bxa5 23. Rxa5 {½-½ (44) Gdanski,J (2540)-Blagojevic,D (2465) Senec 1998}) 17... a5 {[%emt 0:06:28]} 18. Nd5 {[%emt 0:06:33]} a4 {[%emt 0:05:36]} 19. b4 {[%emt 0:00:09] Inhibits Na5.} axb3 $1 {[%emt 0:08:02]} 20. Rxa8 {[%emt 0:00:09]} Qxa8 {[%emt 0:00:03]} 21. Qxb3 {[%emt 0:00:22]} Rb8 {[%emt 0:04:55]} 22. Qc4 {[%emt 0:04:45]} Bf8 {[%emt 0:12:44]} 23. Ng5 {[%emt 0:04:29]} (23. d4 $15) 23... Nd8 $1 $17 {[%emt 0:06:55][%cal Bc6d8,Bd8e6,Be6c5][%mdl 32]} 24. d4 {[%emt 0:05:25]} Rb1 {[%emt 0:20:50]} 25. Qe2 {[%emt 0:15:08][%cal Og5h7] [#]} Qa1 $1 {[%emt 0:03:54]} 26. Bd2 {[%emt 0:18:23]} ({Don't blunder} 26. Qh5 $2 h6 27. Qe2 Rxc1 $19) 26... cxd4 {[%emt 0:02:59][%cal Od4d3]} 27. cxd4 {[%emt 0:00:03]} exd4 {[%emt 0:01:10]} 28. h3 {[%emt 0:03:35]} Ne6 {[%emt 0:01:45]} 29. Rxb1 {[%emt 0:06:48]} Qxb1+ {[%emt 0:00:05]} 30. Qf1 {[%emt 0:00:02]} Qa2 {[%emt 0:04:09]} (30... Qxf1+ $19 31. Kxf1 Bb5+ 32. Ke1 h6 33. Nxe6 fxe6) 31. Qc1 {[%emt 0:00:27]} Nc5 {[%emt 0:00:58][%cal Oc5e4]} 32. Nb4 {[%emt 0:02:30]} Qb3 {[%emt 0:01:36] Black is more active.} 33. Qc2 {[%emt 0:00:17]} (33. Nf3 $17) 33... Qxc2 {[%emt 0:03:13]} 34. Nxc2 {[%emt 0:00:03]} f6 {[%emt 0:01:45]} 35. Nf3 {[%emt 0:00:05]} d3 {[%emt 0:00:16]} 36. Nb4 {[%emt 0:00:41]} Be8 {[%emt 0:02:24]} 37. Be3 {[%emt 0:01:55]} Bg6 {[%emt 0:00:20]} 38. Nd2 {[%emt 0:01:19]} Nxe4 {[%emt 0:02:00]} 39. Nxe4 {[%emt 0:00:04]} Bxe4 {[%emt 0:00:02][%mdl 4096] Endgame KBB-KBN} 40. f3 {[%emt 0:00:05]} Bf5 {[%emt 0:02:00]} 41. Kf2 {[%emt 0:30:47]} Kf7 {[%emt 0:30:23]} 42. Bd4 {[%emt 0:00:00]} h5 {[%emt 0:00:00]} 43. g4 {[%emt 0:00:00] [#]} d2 $1 {[%emt 0:00:00]} 44. Ke2 {[%emt 0:00:00]} Bc8 {[%emt 0:00:00]} 45. Kxd2 {[%emt 0:00:00]} h4 {[%emt 0:00:00]} 46. Bf2 {[%emt 0:00:00] [#]} g5 $1 {[%emt 0:00:00]} 47. Be3 {[%emt 0:00:00]} Bb7 {[%emt 0:00:00]} 48. Ke2 {[%emt 0:00:00]} Be7 {[%emt 0:00:00][%cal Of6f5]} 49. Kf2 {[%emt 0:00:00]} f5 {[%emt 0:00:00]} 50. gxf5 {[%emt 0:00:00]} Kf6 {[%emt 0:00:00]} 51. Nc2 {[%emt 0:00:23]} Kxf5 {[%emt 0:00:00]} 52. Nd4+ {[%emt 0:00:05]} Ke5 {[%emt 0:00:00]} 53. Ne2 $2 {[%emt 0:00:05]} (53. Kg2) 53... Bc8 $19 {[%emt 0:00:00]} 54. Kg2 {[%emt 0:00:46]} Bd7 {[%emt 0:00:00]} (54... Kd5 $142 {Hoping for ...Kc4.} 55. Bf2 Bf6) 55. Nc3 {[%emt 0:00:58]} Bc6 {[%emt 0:00:00]} 56. Kf2 {[%emt 0:00:16]} Bf6 {[%emt 0:00:00]} 57. Bb6 {[%emt 0:00:18]} Ke6 {[%emt 0:00:58]} 58. Ne4 {[%emt 0:00:10]} Be7 {[%emt 0:00:24]} 59. Bd4 {[%emt 0:03:42]} Bd7 {[%emt 0:01:59]} 60. Kg2 {[%emt 0:00:11]} Bc6 {[%emt 0:01:22]} 61. Kf2 $1 {[%emt 0:00:06]} Kf5 {[%emt 0:00:48]} 62. Ke3 {[%emt 0:00:18]} (62. Nd2 $142) 62... Kg6 {[%emt 0:00:17]} 63. Kf2 {[%emt 0:00:14]} (63. Bb6 {was called for.}) 63... d5 {[%emt 0:00:57]} 64. Nc5 {[%emt 0:02:45]} Kf5 {[%emt 0:00:26]} (64... Bf6 $142 65. Be3 d4) 65. Nb3 $2 {[%emt 0:02:24]} (65. Be3) 65... Ba4 {[%emt 0:00:51]} 66. Nc5 {[%emt 0:00:18]} Bb5 {[%emt 0:00:07] White must now prevent ...Bf6. A strong pair of Bishops.} 67. Nb3 {[%emt 0:00:44]} Bc4 {[%emt 0:00:22]} 68. Na5 {[%emt 0:00:10]} Bb5 {[%emt 0:00:38]} 69. Nb3 $1 {[%emt 0:00:22]} Bd6 {[%emt 0:00:23]} 70. Be3 {[%emt 0:00:20]} Bc4 {[%emt 0:00:47]} 71. Nd4+ {[%emt 0:00:06]} Kf6 {[%emt 0:00:06] And now ...Bf4 would win.} 72. Nc6 {[%emt 0:00:22]} Ba6 {[%emt 0:00:46]} 73. Bd4+ {[%emt 0:00:18]} Ke6 {[%emt 0:00:34]} 74. Bb6 {[%emt 0:00:38]} Bg3+ {[%emt 0:00:51]} 75. Kg2 {[%emt 0:00:05]} Bf4 {[%emt 0:01:06]} 76. Nd4+ {[%emt 0:00:55]} Kd7 {[%emt 0:00:22]} 77. Kf2 {[%emt 0:00:16]} Bc8 {[%emt 0:01:20]} ({Black should try} 77... Ke7 $19 78. Nf5+ Kf6) 78. Ne2 $17 {[%emt 0:00:26]} Bd2 {[%emt 0:00:42] aiming for ...Kc6.} 79. Bd4 $2 {[%emt 0:01:38] This costs White the game.} (79. f4 $17 {was worth a try.}) 79... Kc6 $19 {[%emt 0:01:09]} 80. Kg2 {[%emt 0:00:25]} Kb5 {[%emt 0:00:21] ...Kc4 is the strong threat. Black is clearly winning.} 81. Bf6 {[%emt 0:00:14]} Kc4 {[%emt 0:00:56]} 82. f4 {[%emt 0:00:40]} g4 {[%emt 0:01:21][%cal Bg5g4,Bg4h3][%mdl 32]} 83. Bxh4 {[%emt 0:00:20]} gxh3+ {[%emt 0:00:04]} ({Wrong is} 83... Kd3 $2 84. Ng1 $19) 84. Kf2 {[%emt 0:01:03]} d4 {[%emt 0:00:43]} 85. Nxd4 {[%emt 0:00:38]} Kxd4 {[%emt 0:00:13]} 86. Bg5 {[%emt 0:00:05] [#]} Be1+ $1 {[%emt 0:00:58][%mdl 512]} 87. Kg1 {[%emt 0:00:10]} Bg3 {[%emt 0:00:10] Weighted Error Value: White=0.19 (very precise) /Black=0.13 (very precise)} 0-1